fUSD/lending_fUSD_20260324
["ID","MTS","AMOUNT","RATE_DAILY","PERIOD"]
[408873571,1774373373165,-168.06,0.00014288,2]
[408873572,1774373373187,-452.0,0.00014355,2]
[408873573,1774373373210,-500.0,0.00014356,2]
[408873574,1774373373232,-500.0,0.00014356,2]
[408873575,1774373373255,-315.58746921,0.00014383,2]
[408873576,1774373373280,-241.62725414,0.00014386,2]
[408873582,1774373431598,-500.0,0.00014356,2]
[408873584,1774373431608,-1166.37274586,0.00014386,2]
[408873585,1774373431618,-300.0,0.00014386,2]
[408873586,1774373431628,-1205.0,0.000144,2]
[408873587,1774373431637,-150.0,0.000144,2]
[408873588,1774373431647,-150.0,0.000144,30]
[408873589,1774373431658,-2323.48298,0.00014404,2]
[408873590,1774373431669,-1024.0,0.00014414,2]
[408873591,1774373431679,-1200.0,0.00014442,2]
[408873592,1774373431688,-1510.0,0.00014443,2]
[408873593,1774373431698,-240.0,0.00014446,2]
[408873594,1774373431708,-313.0,0.00014447,2]
[408873595,1774373431718,-2895.48,0.00014466,2]
[408873596,1774373431728,-300.0,0.00014471,2]
[408873597,1774373431738,-1102.0,0.00014472,2]
[408873598,1774373431747,-414.0,0.00014476,2]
[408873599,1774373431757,-150.0,0.0001448,2]
[408873600,1774373431766,-401.0,0.00014481,2]
[408873601,1774373431777,-150.0,0.00014495,2]
[408873602,1774373431789,-500.0,0.00014496,2]
[408873603,1774373431803,-500.0,0.00014496,2]
[408873604,1774373431821,-151.0,0.00014496,2]
[408873605,1774373431831,-151.0,0.00014496,2]
[408873606,1774373431841,-151.0,0.00014496,2]
[408873607,1774373431851,-151.0,0.00014496,2]
[408873608,1774373431863,-151.0,0.00014496,2]
[408873609,1774373431873,-151.0,0.00014496,2]
[408873610,1774373431883,-151.0,0.00014496,2]
[408873612,1774373431892,-172.84887246,0.00014496,2]
[408873614,1774373431902,-151.0,0.00014496,2]
[408873616,1774373431912,-151.0,0.00014496,2]
[408873618,1774373431921,-151.0,0.00014496,2]
[408873620,1774373431931,-151.0,0.00014496,2]
[408873622,1774373431940,-151.0,0.00014496,2]
[408873625,1774373431953,-151.0,0.00014496,2]
[408873627,1774373431963,-520.27919313,0.00014496,2]
[408873629,1774373431972,-151.0,0.00014496,2]
[408873631,1774373431983,-151.0,0.00014496,2]
[408873633,1774373431993,-151.0,0.00014496,2]
[408873635,1774373432003,-151.0,0.00014496,2]
[408873637,1774373432013,-151.0,0.00014496,2]
[408873640,1774373432023,-151.0,0.00014496,2]
[408873642,1774373432033,-151.0,0.00014496,2]
[408873644,1774373432042,-844.16555558,0.000145,2]
[408873646,1774373432051,-747.41,0.00014504,2]
[408873648,1774373432062,-1569.1,0.00014504,2]
[408873650,1774373432075,-2114.7,0.00014504,2]
[408873652,1774373432085,-1545.94,0.00014504,2]
[408873653,1774373432095,-5218.68,0.00014504,2]
[408873654,1774373432105,-299.99,0.00014504,2]
[408873655,1774373432114,-9999.99,0.00014504,2]
[408873656,1774373432124,-1189.54,0.00014504,2]
[408873657,1774373432133,-9442.91,0.00014504,2]
[408873658,1774373432145,-9999.99,0.00014504,2]
[408873659,1774373432158,-4140.04,0.00014504,2]
[408873660,1774373432168,-2172.81,0.00014504,2]
[408873661,1774373432178,-353.69,0.00014504,2]
[408873662,1774373432187,-4999.99,0.00014504,2]
[408873663,1774373432197,-999.99,0.00014504,2]
[408873664,1774373432206,-9999.99,0.00014504,2]
[408873665,1774373432216,-15728.47069818,0.00014504,2]
[408873666,1774373432229,-32314.18319705,0.00014504,2]
[408873667,1774373432240,-136630.95610477,0.00014504,2]
[408873668,1774373432250,-7598.95,0.00014504,2]
[408873669,1774373432260,-150.99,0.00014504,2]
[408873670,1774373432270,-14093.03,0.00014504,2]
[408873671,1774373432279,-3851.22,0.00014504,2]
[408873672,1774373432289,-847.14907048,0.00014504,2]
[408873673,1774373432301,-3772.81092952,0.00014504,2]
[408873674,1774373432312,-3672.01,0.00014504,2]
[408873675,1774373432322,-150.99,0.00014504,2]
[408873676,1774373432332,-365.0,0.0001451,2]
[408873677,1774373432342,-1690.0,0.00014539,2]
[408873678,1774373432355,-2323.48297995,0.0001457,2]
[408873679,1774373432365,-200.0,0.000146,5]
[408873680,1774373432375,-677.0,0.00014616,2]
[408873681,1774373432385,-888.0,0.00014645,2]
[408873682,1774373432395,-400.0,0.000147,5]
[408873683,1774373432404,-844.16555552,0.000147,2]
[408873684,1774373432414,-195.89,0.00014717,2]
[408873685,1774373432424,-2323.48297995,0.00014736,2]
[408873686,1774373432433,-747.41,0.00014778,2]
[408873687,1774373432443,-600.0,0.00014783,2]
[408873688,1774373432453,-300.0,0.00014783,2]
[408873689,1774373432463,-300.0,0.00014783,2]
[408873690,1774373432473,-302.87275784,0.00014783,2]
[408873691,1774373432482,-600.0,0.000148,5]
[408873692,1774373432493,-900.0,0.000149,5]
[408873693,1774373432503,-844.16555552,0.000149,2]
[408873694,1774373432514,-2323.48297995,0.00014903,2]
[408873695,1774373432529,-564.0,0.00014934,2]
[408873696,1774373432551,-234.86,0.00015003,2]
[408873697,1774373432564,-500.0,0.00015014,2]
[408873698,1774373432573,-747.41,0.00015052,2]
[408873699,1774373432583,-2323.48297995,0.00015069,2]
[408873700,1774373432592,-844.16555552,0.000151,2]
[408873701,1774373432602,-6762.1846,0.0001521,2]
[408873702,1774373432612,-13235.7913,0.0001521,2]
[408873703,1774373432621,-2323.48297995,0.00015235,2]
[408873704,1774373432631,-1403.99399975,0.000153,2]
[408873705,1774373432640,-844.16555552,0.000153,2]
[408873706,1774373432650,-500.0,0.00015309,2]
[408873707,1774373432659,-500.0,0.00015309,2]
[408873708,1774373432668,-500.0,0.00015309,2]
[408873709,1774373432678,-500.0,0.00015309,2]
[408873710,1774373432688,-500.0,0.00015309,2]
[408873711,1774373432697,-747.41,0.00015326,2]
[408873712,1774373432707,-735.0,0.00015331,2]
[408873713,1774373432717,-193.0,0.00015363,2]
[408873714,1774373432729,-396.0,0.00015363,2]
[408873715,1774373432740,-1403.99399971,0.00015367,2]
[408873716,1774373432750,-369.08606958,0.000154,2]
[408873717,1774373432763,-5000.0,0.000154,2]
[408873718,1774373432772,-1100.0,0.000154,5]
[408873719,1774373432783,-5563.34642139,0.000154,2]
[408873720,1774373432804,-312.7,0.000154,2]
[408873721,1774373432863,-11613.23836501,0.000154,2]
[408873722,1774373432875,-410.6584033,0.000154,2]
[408873723,1774373432887,-1179.57782901,0.000154,2]
[408873724,1774373432910,-643.21682337,0.000154,2]
[408873727,1774373437688,-4108.07012624,0.000154,2]
[408873728,1774373437698,-398.33990422,0.000154,2]
[408873729,1774373437708,-653.32163192,0.000154,2]
[408873730,1774373437718,-2323.48297995,0.00015401,2]
[408873731,1774373437727,-1403.99399971,0.00015433,2]
[408873732,1774373437736,-500.0,0.00015473,2]
[408873734,1774373437747,-382.44369691,0.00015473,2]
[408873735,1774373437757,-500.0,0.00015473,2]
[408873736,1774373437766,-9401.0,0.00015479,2]
[408873737,1774373437776,-169.60418517,0.0001549,2]
[408873738,1774373437785,-398.6694,0.00015497,2]
[408873739,1774373437794,-412.3560062,0.00015497,2]
[408873740,1774373437804,-500.0,0.00015497,2]
[408873741,1774373437814,-500.0,0.00015497,2]
[408873742,1774373437823,-500.0,0.00015497,2]
[408873743,1774373437832,-500.0,0.00015497,2]
[408873744,1774373437841,-500.0,0.00015497,2]
[408873745,1774373437850,-500.0,0.00015497,2]
[408873746,1774373437859,-500.0,0.00015497,2]
[408873747,1774373437868,-500.0,0.00015497,2]
[408873748,1774373437877,-500.0,0.00015497,2]
[408873749,1774373437887,-500.0,0.00015497,2]
[408873750,1774373437896,-500.0,0.00015497,2]
[408873751,1774373437905,-310.56678839,0.00015497,2]
[408873752,1774373437915,-500.0,0.00015497,2]
[408873753,1774373437924,-500.0,0.00015497,2]
[408873754,1774373437934,-500.0,0.00015497,2]
[408873755,1774373437943,-500.0,0.00015497,2]
[408873756,1774373437952,-500.0,0.00015497,2]
[408873757,1774373437961,-500.0,0.00015497,2]
[408873758,1774373437970,-500.0,0.00015497,2]
[408873759,1774373437979,-500.0,0.00015497,2]
[408873760,1774373437989,-500.0,0.00015497,2]
[408873761,1774373437999,-500.0,0.00015497,2]
[408873762,1774373438009,-500.0,0.00015497,2]
[408873764,1774373438018,-500.0,0.00015497,2]
[408873766,1774373438027,-500.0,0.00015497,2]
[408873768,1774373438036,-500.0,0.00015497,2]
[408873771,1774373438045,-500.0,0.00015497,2]
[408873773,1774373438055,-500.0,0.00015497,2]
[408873775,1774373438064,-500.0,0.00015497,2]
[408873777,1774373438076,-500.0,0.00015497,2]
[408873779,1774373438084,-500.0,0.00015497,2]
[408873781,1774373438093,-500.0,0.00015497,2]
[408873783,1774373438102,-500.0,0.00015497,2]
[408873785,1774373438113,-500.0,0.00015497,2]
[408873787,1774373438122,-500.0,0.00015497,2]
[408873789,1774373438132,-500.0,0.00015497,2]
[408873791,1774373438141,-500.0,0.00015497,2]
[408873793,1774373438152,-500.0,0.00015497,2]
[408873795,1774373438161,-500.0,0.00015497,2]
[408873797,1774373438172,-500.0,0.00015497,2]
[408873799,1774373438181,-500.0,0.00015497,2]
[408873801,1774373438189,-500.0,0.00015497,2]
[408873803,1774373438198,-500.0,0.00015497,2]
[408873805,1774373438209,-500.0,0.00015497,2]
[408873806,1774373438218,-500.0,0.00015497,2]
[408873807,1774373438228,-500.0,0.00015497,2]
[408873808,1774373438237,-500.0,0.00015497,2]
[408873809,1774373438248,-500.0,0.00015497,2]
[408873810,1774373438258,-500.0,0.00015497,2]
[408873811,1774373438268,-500.0,0.00015497,2]
[408873812,1774373438280,-500.0,0.00015497,2]
[408873813,1774373438290,-500.0,0.00015497,2]
[408873814,1774373438300,-500.0,0.00015497,2]
[408873815,1774373438310,-500.0,0.00015497,2]
[408873816,1774373438319,-500.0,0.00015497,2]
[408873817,1774373438328,-500.0,0.00015497,2]
[408873818,1774373438337,-500.0,0.00015497,2]
[408873819,1774373438346,-500.0,0.00015497,2]
[408873820,1774373438355,-500.0,0.00015497,2]
[408873821,1774373438364,-500.0,0.00015497,2]
[408873822,1774373438374,-500.0,0.00015497,2]
[408873823,1774373438384,-500.0,0.00015497,2]
[408873824,1774373438393,-500.0,0.00015497,2]
[408873825,1774373438402,-500.0,0.00015497,2]
[408873826,1774373438411,-500.0,0.00015497,2]
[408873827,1774373438421,-500.0,0.00015497,2]
[408873828,1774373438431,-500.0,0.00015497,2]
[408873829,1774373438440,-500.0,0.00015497,2]
[408873830,1774373438449,-500.0,0.00015497,2]
[408873831,1774373438458,-500.0,0.00015497,2]
[408873832,1774373438468,-500.0,0.00015497,2]
[408873833,1774373438477,-500.0,0.00015497,2]
[408873834,1774373438486,-500.0,0.00015497,2]
[408873835,1774373438495,-500.0,0.00015497,2]
[408873836,1774373438505,-500.0,0.00015497,2]
[408873837,1774373438514,-500.0,0.00015497,2]
[408873838,1774373438523,-500.0,0.00015497,2]
[408873839,1774373438532,-500.0,0.00015497,2]
[408873840,1774373438542,-500.0,0.00015497,2]
[408873841,1774373438551,-500.0,0.00015497,2]
[408873842,1774373438560,-500.0,0.00015497,2]
[408873843,1774373438569,-500.0,0.00015497,2]
[408873844,1774373438578,-500.0,0.00015497,2]
[408873845,1774373438587,-500.0,0.00015497,2]
[408873846,1774373438597,-500.0,0.00015497,2]
[408873847,1774373438606,-500.0,0.00015497,2]
[408873848,1774373438615,-500.0,0.00015497,2]
[408873849,1774373438625,-585.04703432,0.00015497,2]
[408873850,1774373438634,-500.0,0.00015497,2]
[408873851,1774373438643,-500.0,0.00015497,2]
[408873852,1774373438652,-500.0,0.00015497,2]
[408873853,1774373438661,-500.00000001,0.00015497,2]
[408873854,1774373438670,-547.21330054,0.00015499,2]
[408873855,1774373438679,-264.67580688,0.00015499,2]
[408873856,1774373438689,-500.0,0.00015499,2]
[408873857,1774373438698,-500.0,0.00015499,2]
[408873858,1774373438707,-500.0,0.00015499,2]
[408873859,1774373438716,-481.55394297,0.00015499,2]
[408873860,1774373438726,-500.0,0.00015499,2]
[408873861,1774373438735,-500.0,0.00015499,2]
[408873862,1774373438744,-500.0,0.00015499,2]
[408873863,1774373438754,-500.0,0.00015499,2]
[408873864,1774373438763,-500.0,0.00015499,2]
[408873865,1774373438772,-500.0,0.00015499,2]
[408873866,1774373438781,-500.0,0.00015499,2]
[408873867,1774373438791,-500.0,0.00015499,2]
[408873868,1774373438800,-207.17800833,0.00015499,2]
[408873869,1774373438809,-500.0,0.00015499,2]
[408873870,1774373438818,-500.0,0.00015499,2]
[408873871,1774373438827,-500.0,0.00015499,2]
[408873872,1774373438836,-500.0,0.00015499,2]
[408873873,1774373438845,-500.0,0.00015499,2]
[408873874,1774373438854,-500.0,0.00015499,2]
[408873875,1774373438865,-500.0,0.00015499,2]
[408873876,1774373438874,-2500000.0,0.000155,2]
[408873877,1774373438884,-200.0,0.000155,5]
[408873878,1774373438893,-1403.99399971,0.000155,2]
[408873879,1774373438902,-844.16555552,0.000155,2]
[408873880,1774373438911,-700.0,0.0001551,2]
[408873881,1774373438920,-232.943024,0.00015555,7]
[408873882,1774373438929,-1403.99399971,0.00015567,2]
[408873883,1774373438939,-2323.48297995,0.00015568,2]
[408873884,1774373438948,-228.111905,0.00015582,7]
[408873885,1774373438957,-747.41,0.000156,2]
[408873886,1774373438967,-200.0,0.000156,5]
[408873887,1774373438976,-197.1161,0.000156,2]
[408873888,1774373438986,-255.0,0.00015625,2]
[408873889,1774373438997,-1403.99399971,0.00015633,2]
[408873890,1774373439006,-369.08606958,0.0001565,2]
[408873891,1774373439015,-398.33990422,0.0001565,2]
[408873892,1774373439025,-653.3216319,0.0001565,2]
[408873893,1774373439034,-662.34079846,0.0001568,2]
[408873894,1774373439044,-200.0,0.000157,5]
[408873895,1774373439055,-844.16555552,0.000157,2]
[408873896,1774373439064,-1403.99399971,0.000157,2]
[408873897,1774373439076,-234.86,0.00015717,2]
[408873898,1774373439085,-2323.48297995,0.00015734,2]
[408873899,1774373439094,-182.735,0.00015779,2]
[408873900,1774373439103,-4045.922,0.00015779,2]
[408873901,1774373439114,-200.0,0.000158,5]
[408873902,1774373439123,-239.57168,0.0001584,2]
[408873903,1774373439132,-239.57168,0.0001584,2]
[408873904,1774373439142,-420.0,0.00015846,2]
[408873905,1774373439151,-239.57169,0.0001585,2]
[408873906,1774373439161,-979.16666667,0.00015853,2]
[408873907,1774373439170,-160.0,0.00015855,2]
[408873908,1774373439179,-160.0,0.00015855,2]
[408873909,1774373439188,-350.0,0.00015855,2]
[408873910,1774373439196,-500.0,0.00015873,2]
[408873911,1774373439205,-366.41832896,0.00015873,2]
[408873912,1774373439215,-500.0,0.00015873,2]
[408873913,1774373439224,-500.0,0.00015873,2]
[408873914,1774373439233,-500.0,0.00015873,2]
[408873915,1774373439242,-500.0,0.00015873,2]
[408873916,1774373439251,-500.0,0.00015873,2]
[408873917,1774373439261,-500.0,0.00015873,2]
[408873918,1774373439271,-500.0,0.00015873,2]
[408873919,1774373439282,-500.0,0.00015873,2]
[408873920,1774373439294,-500.0,0.00015873,2]
[408873921,1774373439304,-252912.2328,0.00015873,2]
[408873922,1774373439314,-747.41,0.00015874,2]
[408873923,1774373439323,-1680.0,0.00015886,2]
[408873924,1774373439333,-1695.41392368,0.000159,2]
[408873925,1774373439343,-369.08606958,0.000159,2]
[408873926,1774373439353,-185833.6990093,0.000159,2]
[408873927,1774373439362,-501.0,0.000159,5]
[408873928,1774373439372,-2323.48297995,0.000159,2]
[408873929,1774373439381,-2785.6118811,0.000159,2]
[408873930,1774373439392,-398.33990422,0.000159,2]
[408873931,1774373439401,-653.3216319,0.000159,2]
[408873932,1774373439410,-844.16555552,0.000159,2]
[408873933,1774373439420,-1767.0,0.000159,5]
[408873934,1774373439430,-152.6045041,0.00015932,2]
[408873935,1774373439439,-400.0,0.0001597,2]
[408873936,1774373439449,-400.0,0.0001597,2]
[408873937,1774373439459,-13959.0,0.00015973,2]
[408873938,1774373439469,-500.0,0.00015973,2]
[408873939,1774373439479,-500.0,0.00015973,2]
[408873940,1774373439488,-500.0,0.00015973,2]
[408873941,1774373439497,-500.0,0.00015973,2]
[408873942,1774373439506,-500.0,0.00015973,2]
[408873943,1774373439515,-169.60418517,0.0001599,2]
[408873944,1774373439524,-169.60418517,0.0001599,2]
[408873945,1774373439533,-1262.0,0.00015996,2]
[408873946,1774373439541,-924.0,0.00015996,2]
[408873947,1774373439550,-1215.0,0.00015996,2]
[408873948,1774373439559,-6009.0,0.00015996,2]
[408873949,1774373439568,-2467.0,0.00015996,2]
[408873950,1774373439577,-163.7443955,0.00015999,2]
[408873951,1774373439586,-519.39340365,0.00015999,2]
[408873952,1774373439596,-216.78302008,0.00015999,2]
[408873953,1774373439605,-204.87462253,0.00015999,2]
[408873954,1774373439614,-500.0,0.00015999,2]
[408873955,1774373439624,-2485172.0177644,0.00016,2]
[408873956,1774373439633,-1644273.56109385,0.00016,2]
[408873957,1774373439642,-277307.37701941,0.00016,2]
[408873960,1774373440662,-14174.9,0.00016,2]
[408873961,1774373440860,-57964.74653632,0.00016,2]
[408873962,1774373441265,-1403.99399971,0.00015767,2]
[408873963,1774373441275,-299411.2548102,0.00016,2]
[408873964,1774373441286,-439.99162538,0.00016,2]
[408873965,1774373441297,-1212.31290978,0.00016,2]
[408873966,1774373441357,-372.34049029,0.00016,2]
[408873967,1774373441368,-399.6519693,0.00016,2]
[408873968,1774373441378,-585.03581966,0.00016,2]
[408873969,1774373441389,-383.45408857,0.00016,2]
[408873970,1774373441400,-1256.38003316,0.00016,2]
[408873971,1774373441411,-1274.10844059,0.00016,2]
[408873972,1774373441435,-1413.47813135,0.00016,2]
[408873975,1774373444161,-496.70449516,0.00014504,2]
[408873979,1774373444376,-3.29550484,0.00014504,2]
[408873980,1774373444385,-500.0,0.00015498,2]
[408873981,1774373444395,-500.0,0.00015499,2]
[408873982,1774373444405,-1403.99399971,0.00015833,2]
[408873983,1774373444415,-9589.49975473,0.00016,2]
[408873984,1774373444426,-1268.61362915,0.00016,2]
[408873985,1774373444445,-1423.6,0.00016,2]
[408873987,1774373444656,-106639.83551849,0.00016,2]
[408873990,1774373444673,-735.43,0.00016,2]
[408873992,1774373444684,-2011.21213298,0.00016,2]
[408874109,1774373445874,-2768.95983,0.00016,2]
[408874110,1774373445885,-1500.0,0.00016,2]
[408874111,1774373445930,-423.4399,0.00016,2]
[408874112,1774373445941,-10349.27104002,0.00016,2]
[408874113,1774373445952,-1381.72,0.00016,2]
[408874161,1774373514011,4467.0,0.000114,5]
[408874170,1774373811480,1004.68,0.00011507,2]
[408874171,1774374177272,1277.05,0.00011852,2]
[408874172,1774374192283,467.16,6.572e-05,2]
[408874173,1774374192455,467.16,6.918e-05,2]
[408874174,1774374192652,467.16,7.264e-05,2]
[408874175,1774374192855,467.16,7.61e-05,2]
[408874176,1774374193104,467.16,7.956e-05,2]
[408874177,1774374193281,467.16,8.301e-05,2]
[408874178,1774374193527,467.16,8.647e-05,2]
[408874179,1774374193715,467.16,8.993e-05,2]
[408874180,1774374193917,467.16,9.339e-05,2]
[408874181,1774374194131,467.16,9.685e-05,2]
[408874182,1774374194339,467.16,0.00010031,2]
[408874183,1774374194539,467.16,0.00010377,2]
[408874184,1774374194750,467.16,0.00010723,2]
[408874185,1774374194963,467.16,0.00011069,2]
[408874186,1774374195153,467.16,0.00011414,2]
[408874187,1774374195902,467.16,0.0001176,2]
[408874190,1774374429100,468.41,0.00011852,2]
[408874191,1774374449146,-467.16,0.00012106,2]
[408874192,1774374449166,-236.60550799,0.00012279,2]
[408874193,1774374449186,-100.02762676,0.00012279,2]
[408874194,1774374546118,-467.16,0.00012452,2]
[408874195,1774374546142,-1600.0,0.00012528,2]
[408874196,1774374546165,-467.16,0.00012798,2]
[408874197,1774374546187,-1916.386554,0.00012912,2]
[408874198,1774374558103,-244.26094394,0.00012698,2]
[408874199,1774374558124,-83.613446,0.00012912,2]
[408874200,1774374558144,-467.16,0.00013144,2]
[408874201,1774374558164,-150.0,0.00013172,2]
[408874202,1774374558183,-721.68,0.00013172,2]
[408874203,1774374558202,-300.0,0.00013236,2]
[408874204,1774374558223,-1200.0,0.00013236,2]
[408874205,1774374558244,-300.0,0.00013236,2]
[408874206,1774374558264,-150.99,0.00013237,2]
[408874207,1774374558284,-1200.0,0.00013237,2]
[408874208,1774374558305,-300.0,0.00013237,2]
[408874209,1774374558325,-300.0,0.00013238,2]
[408874210,1774374558344,-300.0,0.00013238,2]
[408874211,1774374558364,-150.0,0.00013238,2]
[408874212,1774374558384,-500.0,0.00013239,2]
[408874213,1774374558409,-500.0,0.00013239,2]
[408874214,1774374558430,-500.0,0.00013239,2]
[408874215,1774374558450,-500.0,0.00013239,2]
[408874216,1774374558471,-500.0,0.00013239,2]
[408874217,1774374558492,-500.0,0.00013239,2]
[408874218,1774374558512,-500.0,0.00013239,2]
[408874219,1774374558531,-500.0,0.00013239,2]
[408874220,1774374558551,-500.0,0.00013239,2]
[408874221,1774374558571,-444.37224627,0.00013239,2]
[408874222,1774374558590,-500.0,0.00013303,2]
[408874223,1774374558611,-2515.87333593,0.00013317,2]
[408874224,1774374558631,-1500.0,0.00013321,2]
[408874225,1774374558650,-999.99,0.00013321,2]
[408874226,1774374558670,-2995.8,0.00013321,2]
[408874227,1774374558691,-172.7,0.00013321,2]
[408874228,1774374558711,-23886.62,0.00013321,2]
[408874229,1774374558733,-9999.99,0.00013321,2]
[408874230,1774374558753,-9999.99,0.00013321,2]
[408874231,1774374558773,-9999.99,0.00013321,2]
[408874232,1774374558792,-150.99,0.00013321,2]
[408874233,1774374558813,-299.99,0.00013321,2]
[408874234,1774374558834,-183.0,0.00013323,2]
[408874235,1774374558855,-307.0,0.00013399,2]
[408874236,1774374558876,-697.0,0.00013405,2]
[408874237,1774374558899,-907.92351299,0.00013413,2]
[408874238,1774374558921,-1402.07095652,0.00013414,2]
[408874239,1774374558943,-407.0,0.00013425,2]
[408874240,1774374558965,-388.0,0.00013452,2]
[408874241,1774374558986,-32202.36891006,0.00013503,2]
[408874242,1774374559008,-182.735,0.00013504,2]
[408874243,1774374559029,-4248.468,0.00013504,2]
[408874244,1774374559050,-166.66,0.00013504,2]
[408874245,1774374559071,-298.96,0.00013513,2]
[408874246,1774374559090,-307.86812449,0.00013513,2]
[408874247,1774374559110,-500.0,0.00013513,2]
[408874248,1774374559130,-500.0,0.00013513,2]
[408874249,1774374559150,-500.0,0.00013513,2]
[408874250,1774374559170,-500.0,0.00013513,2]
[408874251,1774374559190,-537.66742007,0.00013513,2]
[408874252,1774374559209,-500.0,0.00013513,2]
[408874253,1774374559229,-384.17141746,0.00013513,2]
[408874254,1774374559248,-500.0,0.00013513,2]
[408874255,1774374559267,-500.0,0.00013513,2]
[408874256,1774374559287,-276.95894857,0.00013513,2]
[408874257,1774374559307,-163765.64940486,0.00013514,2]
[408874258,1774374566325,-14190.0629704,0.00013514,2]
[408874259,1774374572078,-1103.22765,0.00013514,2]
[408874273,1774374631886,-432.98695225,0.00013473,2]
[408874274,1774374631895,-1200.0,0.00013513,2]
[408874275,1774374631904,-300.0,0.00013513,2]
[408874276,1774374631913,-232.76578995,0.00013573,2]
[408874277,1774374631939,-267.23421005,0.00013573,2]
[408874278,1774374631948,-907.9235129,0.00013689,2]
[408874279,1774374631957,-1402.07095644,0.0001369,2]
[408874280,1774374631966,-519.39340365,0.00013698,2]
[408874281,1774374631975,-204.87462253,0.00013698,2]
[408874282,1774374631984,-500.0,0.00013698,2]
[408874283,1774374631993,-500.0,0.00013698,2]
[408874285,1774374632002,-200.0,0.00013699,2]
[408874287,1774374632011,-298.96,0.00013787,2]
[408874289,1774374632020,-166.66,0.00013789,2]
[408874291,1774374632029,-432.98695225,0.0001382,2]
[408874293,1774374632038,-200.0,0.000139,5]
[408874295,1774374632047,-907.9235129,0.00013966,2]
[408874297,1774374632057,-1402.07095644,0.00013966,2]
[408874299,1774374632066,-529.0,0.00014,2]
[408874302,1774374632077,-228.36,0.00014038,2]
[408874304,1774374632086,-298.96,0.00014061,2]
[408874306,1774374632095,-166.66,0.00014073,2]
[408874308,1774374632104,-500.0,0.00014082,2]
[408874310,1774374632113,-1600.0,0.00014094,2]
[408874312,1774374632122,-512.96917258,0.00014121,2]
[408874314,1774374632131,-432.98695225,0.00014166,2]
[408874316,1774374632141,-907.9235129,0.00014242,2]
[408874318,1774374632149,-1402.07095644,0.00014243,2]
[408874320,1774374632159,-298.96,0.00014335,2]
[408874322,1774374632168,-255.0,0.0001435,2]
[408874323,1774374632177,-166.66,0.00014357,2]
[408874325,1774374632187,-150.0,0.000144,2]
[408874327,1774374632196,-500.0,0.00014504,2]
[408874329,1774374632206,-300.0,0.00014512,2]
[408874331,1774374632215,-432.98695225,0.00014513,2]
[408874333,1774374632224,-907.9235129,0.00014518,2]
[408874335,1774374632233,-1402.07095644,0.00014519,2]
[408874337,1774374632245,-2000.0,0.00014526,2]
[408874339,1774374632254,-298.98,0.00014609,2]
[408874341,1774374632263,-166.66,0.00014641,2]
[408874343,1774374632273,-907.9235129,0.00014795,2]
[408874345,1774374632283,-1402.07095644,0.00014795,2]
[408874347,1774374632292,-420.0,0.00014812,2]
[408874349,1774374632301,-200.0,0.0001482,2]
[408874351,1774374632310,-237.65448027,0.0001482,2]
[408874353,1774374632319,-600.0,0.0001482,2]
[408874355,1774374632328,-5000.0,0.0001482,2]
[408874357,1774374632338,-399.97237324,0.0001482,2]